[Event "Istanbul Open 2019"]
[Site "Istanbul"]
[Date "2019.08.30"]
[Round "6.16"]
[White "Metin, Enis"]
[Black "Ahmadov, Orkhan"]
[Result "0-1"]
[ECO "B40"]
[WhiteElo "1749"]
[BlackElo "1615"]
[Annotator "NA"]
[PlyCount "132"]
[EventDate "2019.08.26"]
[EventType "swiss"]
[EventCountry "TUR"]
[SourceTitle "playchess.com"]
[Source "ChessBase"]
[SourceQuality "1"]
[TimeControl "5400+30"]

1. e4 c5 2. Nf3 e6 3. b4 cxb4 4. a3 Nf6 5. e5 Nd5 6. axb4 Bxb4 7. c3 Be7 8. d4 d6 9. Bd3 Nd7 10. O-O {[%emt 0:05:00]} O-O {[%emt 1:13:00]} 11. Bd2 {[%emt 0:01:30]} dxe5 {[%emt 0:09:04]} 12. dxe5 {[%emt 0:00:30]} a6 {[%emt 0:05:58]} 13. Na3 {[%emt 0:00:30]} Re8 {[%emt 0:05:13]} 14. Qe2 {[%emt 0:00:30]} Nc5 {[%emt 0:01:02]} 15. Bc2 {[%emt 0:00:00]} Bd7 {[%emt 0:01:11]} 16. Rfd1 {[%emt 0:01:00]} Qc7 {[%emt 0:01:32]} 17. c4 {[%emt 0:00:30]} Nb6 {[%emt 0:00:01]} 18. Ba5 {[%emt 0:00:00]} Bc6 {[%emt 0:00:31]} 19. Rab1 {[%emt 0:00:00]} Ncd7 {[%emt 0:00:09]} 20. Rd3 {[%emt 0:18:30]} Bxf3 {[%emt 0:01:27]} 21. Rxf3 {[%emt 0:00:00]} Bxa3 {[%emt 0:00:24]} 22. Bxh7+ {[%emt 0:02:00]} Kxh7 {[%emt 0:00:43]} 23. Rxa3 {[%emt 0:01:30]} Qxe5 {[%emt 0:00:35]} 24. Rh3+ {[%emt 0:00:30]} Kg8 {[%emt 0:00:03]} 25. Qxe5 {[%emt 0:01:30]} Nxe5 {[%emt 0:00:01]} 26. Bxb6 {[%emt 0:00:30]} Nxc4 {[%emt 0:00:30]} 27. Bd4 {[%emt 0:00:00]} e5 {[%emt 0:00:00]} 28. Ba1 {[%emt 0:00:00]} b5 {[%emt 0:00:16]} 29. Rg3 {[%emt 0:00:30]} f6 {[%emt 0:00:00]} 30. f4 {[%emt 0:00:00]} Kf7 {[%emt 0:00:45]} 31. fxe5 {[%emt 0:00:00]} Nxe5 {[%emt 0:00:03]} 32. Bxe5 {[%emt 0:00:30]} Rxe5 {[%emt 0:00:36]} 33. Rc1 {[%emt 0:00:30]} Rae8 {[%emt 0:00:00]} 34. Rc7+ {[%emt 0:00:30]} R8e7 {[%emt 0:00:00]} 35. Rc6 {[%emt 0:00:00]} Re1+ {[%emt 0:00:28]} 36. Kf2 {[%emt 0:00:00]} R7e2+ {[%emt 0:00:00]} 37. Kf3 {[%emt 0:00:30]} Re3+ {[%emt 0:00:00]} 38. Kf2 {[%emt 0:00:00]} Rxg3 {[%emt 0:00:00]} 39. Kxg3 {[%emt 0:00:00]} Re6 {[%emt 0:00:00]} 40. Rc7+ {[%emt 0:00:00]} Kg6 {[%emt 0:00:02]} 41. Rb7 {[%emt 0:01:00]} f5 {[%emt 0:01:16]} 42. Kf3 {[%emt 0:00:30]} Kf6 {[%emt 0:00:11]} 43. h3 {[%emt 0:00:30]} g5 {[%emt 0:00:24]} 44. g3 {[%emt 0:00:00]} Rc6 {[%emt 0:00:26]} 45. Ke3 {[%emt 0:01:00]} Ke5 {[%emt 0:00:07]} 46. Rg7 {[%emt 0:00:00]} f4+ {[%emt 0:00:22]} 47. gxf4+ {[%emt 0:00:00]} gxf4+ {[%emt 0:00:30]} 48. Ke2 {[%emt 0:00:30]} Rc2+ {[%emt 0:02:15]} 49. Kd3 {[%emt 0:00:00]} Rh2 {[%emt 0:00:00]} 50. Rg5+ {[%emt 0:00:00]} Kf6 {[%emt 0:01:02]} 51. Rh5 {[%emt 0:00:30]} Ra2 {[%emt 0:00:00]} 52. Ke4 {[%emt 0:00:00]} Ra4+ {[%emt 0:00:38]} 53. Kf3 {[%emt 0:00:00]} Kg6 {[%emt 0:01:02]} 54. Rc5 {[%emt 0:00:00]} Kf6 {[%emt 0:01:41]} 55. h4 {[%emt 0:00:00]} b4 {[%emt 0:02:53]} 56. Rc4 {[%emt 0:00:30]} a5 {[%emt 0:00:24]} 57. Kxf4 {[%emt 0:00:00]} Ra1 {[%emt 0:01:12]} 58. Rc6+ {[%emt 0:00:00]} Kg7 {[%emt 0:00:00]} 59. Rb6 {[%emt 0:00:30]} Rb1 {[%emt 0:00:11]} 60. Kg5 {[%emt 0:01:30]} a4 {[%emt 0:00:45]} 61. Rb7+ {[%emt 0:00:00]} Kf8 {[%emt 0:00:07]} 62. h5 {[%emt 0:00:00]} a3 {[%emt 0:00:54]} 63. h6 {[%emt 0:00:00]} a2 {[%emt 0:00:30]} 64. h7 {[%emt 0:00:00]} Rh1 {[%emt 0:00:52]} 65. Ra7 {[%emt 0:00:30]} b3 {[%emt 0:00:11]} 66. Kf6 {[%emt 0:00:30]} Rh6+ {[%emt 0:00:04]} 0-1

[Event "Istanbul Open 2019"]
[Site "Istanbul"]
[Date "2019.08.30"]
[Round "6.17"]
[White "Pektas, Gokdeniz"]
[Black "Yilmaz, Hasan"]
[Result "1-0"]
[ECO "D04"]
[WhiteElo "1652"]
[BlackElo "1580"]
[Annotator "NA"]
[PlyCount "59"]
[EventDate "2019.08.26"]
[EventType "swiss"]
[EventCountry "TUR"]
[SourceTitle "playchess.com"]
[Source "ChessBase"]
[SourceQuality "1"]
[TimeControl "5400+30"]

1. d4 d5 2. Nf3 Nf6 3. e3 c5 4. b3 Bg4 5. h3 Bh5 6. g4 Bg6 7. Ne5 Nbd7 8. Bg2 e6 9. h4 h6 10. Nxg6 fxg6 11. Qd3 Kf7 12. Nd2 cxd4 13. exd4 Bd6 14. Bb2 Nxg4 15. O-O-O h5 16. Rh3 Nh6 17. Re1 Nf6 18. Nf3 Bf4+ 19. Kb1 Nf5 20. Bc1 Bxc1 21. Kxc1 {[%emt 0:26:30]} Nh7 {[%emt 1:04:30]} 22. Ne5+ {[%emt 0:00:00]} Kf6 {[%emt 0:00:30]} 23. Nxg6 {[%emt 0:04:00]} Qa5 {[%emt 0:07:30]} 24. Re5 {[%emt 0:03:30]} Rhe8 {[%emt 0:04:30]} 25. Nf4 {[%emt 0:00:30]} g6 {[%emt 0:01:30]} 26. Rg3 {[%emt 0:02:30]} Nf8 {[%emt 0:00:30]} 27. Bxd5 {[%emt 0:02:30]} Qa3+ {[%emt 0:02:30]} 28. Kb1 {[%emt 0:00:30]} exd5 {[%emt 0:00:30]} 29. Rxg6+ {[%emt 0:00:00]} Nxg6 {[%emt 0:02:42]} 30. Qxf5+ {[%emt 0:00:00]} 1-0

[Event "Istanbul Open 2019"]
[Site "Istanbul"]
[Date "2019.08.30"]
[Round "6.18"]
[White "Aslan, Nevzat"]
[Black "Can, Ilhan"]
[Result "1/2-1/2"]
[ECO "A33"]
[WhiteElo "1680"]
[BlackElo "1683"]
[Annotator "NA"]
[PlyCount "38"]
[EventDate "2019.08.26"]
[EventType "swiss"]
[EventCountry "TUR"]
[SourceTitle "playchess.com"]
[Source "ChessBase"]
[SourceQuality "1"]
[TimeControl "5400+30"]

1. c4 Nf6 2. g3 c5 3. Nf3 e6 4. d4 cxd4 5. Nxd4 a6 6. Bg2 Nc6 7. O-O Be7 8. Nc3 O-O 9. e4 Qc7 10. Nc2 d6 11. b3 Bd7 12. Bb2 Rac8 13. Kh1 Qb8 14. f4 b5 {[%emt 0:21:00]} 15. cxb5 {[%emt 1:01:30]} axb5 {[%emt 0:00:30]} 16. b4 {[%emt 0:00:30]} Rfd8 {[%emt 0:00:30]} 17. a3 {[%emt 0:01:30]} Na7 {[%emt 0:05:30]} 18. Qe2 {[%emt 0:02:30]} Bc6 {[%emt 0:00:30]} 19. Nd4 {[%emt 0:00:30]} Be8 {[%emt 0:02:30]} 1/2-1/2

[Event "Istanbul Open 2019"]
[Site "Istanbul"]
[Date "2019.08.30"]
[Round "6.19"]
[White "Menekse, Tuncay"]
[Black "Ulas, Berkay"]
[Result "0-1"]
[ECO "E62"]
[WhiteElo "1684"]
[BlackElo "1628"]
[Annotator "NA"]
[PlyCount "132"]
[EventDate "2019.08.26"]
[EventType "swiss"]
[EventCountry "TUR"]
[SourceTitle "playchess.com"]
[Source "ChessBase"]
[SourceQuality "1"]
[TimeControl "5400+30"]

1. d4 Nf6 2. c4 g6 3. Nf3 Bg7 4. g3 O-O 5. Bg2 c6 6. O-O d6 7. Nc3 Re8 8. e4 Qa5 9. Bd2 Qh5 10. Nh4 Qxd1 11. Raxd1 e5 12. dxe5 dxe5 13. a3 Be6 14. b3 Nbd7 15. Bg5 {[%emt 0:51:30]} Bf8 {[%emt 0:26:30]} 16. Bc1 {[%emt 0:00:30]} a5 {[%emt 0:10:30]} 17. Rfe1 {[%emt 0:01:30]} Nc5 {[%emt 0:02:30]} 18. b4 {[%emt 0:01:30]} axb4 {[%emt 0:00:30]} 19. axb4 {[%emt 0:00:30]} Na4 {[%emt 0:00:30]} 20. Nxa4 {[%emt 0:00:30]} Rxa4 {[%emt 0:00:30]} 21. b5 {[%emt 0:00:30]} Bxc4 {[%emt 0:01:30]} 22. bxc6 {[%emt 0:01:30]} bxc6 {[%emt 0:03:30]} 23. Bg5 {[%emt 0:00:30]} Kg7 {[%emt 0:01:30]} 24. Nf3 {[%emt 0:02:30]} h6 {[%emt 0:09:30]} 25. Bxf6+ {[%emt 0:01:30]} Kxf6 {[%emt 0:00:30]} 26. Rc1 {[%emt 0:00:30]} c5 {[%emt 0:02:30]} 27. Nd2 {[%emt 0:02:30]} Bd3 {[%emt 0:06:30]} 28. Bf1 {[%emt 0:02:30]} Bxf1 {[%emt 0:00:00]} 29. Kxf1 {[%emt 0:00:00]} Rd8 {[%emt 0:02:00]} 30. Rc2 {[%emt 0:01:00]} Rb8 {[%emt 0:14:30]} 31. f3 {[%emt 0:00:30]} h5 {[%emt 0:00:30]} 32. Kg2 {[%emt 0:00:30]} Rd4 {[%emt 0:02:30]} 33. Nc4 {[%emt 0:00:30]} Rb4 {[%emt 0:04:15]} 34. Ne3 {[%emt 0:00:30]} Rb3 {[%emt 0:01:10]} 35. Nd5+ {[%emt 0:01:30]} Ke6 {[%emt 0:00:26]} 36. Re3 {[%emt 0:00:30]} Rxe3 {[%emt 0:00:53]} 37. Nxe3 {[%emt 0:00:30]} Bh6 {[%emt 0:00:34]} 38. Nc4 {[%emt 0:00:30]} f6 {[%emt 0:00:24]} 39. Na5 {[%emt 0:00:30]} Rd2+ {[%emt 0:00:55]} 40. Rxd2 {[%emt 0:00:30]} Bxd2 {[%emt 0:00:30]} 41. Nc4 {[%emt 0:00:00]} Bc3 {[%emt 0:00:32]} 42. Kf2 {[%emt 0:01:00]} f5 {[%emt 0:05:36]} 43. h3 {[%emt 0:02:30]} Bd4+ {[%emt 0:02:05]} 44. Ke2 {[%emt 0:01:30]} Kf6 {[%emt 0:00:37]} 45. Nd6 {[%emt 0:00:30]} Kg5 {[%emt 0:01:26]} 46. Nf7+ {[%emt 0:00:30]} Kf6 {[%emt 0:00:06]} 47. Nd6 {[%emt 0:00:30]} fxe4 {[%emt 0:02:39]} 48. fxe4 {[%emt 0:00:30]} h4 {[%emt 0:02:57]} 49. g4 {[%emt 0:02:30]} Ke6 {[%emt 0:00:43]} 50. Nc4 {[%emt 0:00:00]} Kd7 {[%emt 0:00:44]} 51. Kd2 {[%emt 0:00:00]} Kc6 {[%emt 0:00:30]} 52. Kc2 {[%emt 0:00:30]} Kc7 {[%emt 0:01:35]} 53. Kd2 {[%emt 0:00:30]} Ba1 {[%emt 0:00:28]} 54. Kc2 {[%emt 0:00:30]} Kc6 {[%emt 0:00:45]} 55. Kb3 {[%emt 0:00:30]} Kb5 {[%emt 0:00:51]} 56. Nd2 {[%emt 0:04:30]} c4+ {[%emt 0:00:30]} 57. Nxc4 {[%emt 0:00:30]} Kc5 {[%emt 0:00:01]} 58. Nd2 {[%emt 0:03:30]} Kd4 {[%emt 0:01:01]} 59. Nf3+ {[%emt 0:00:30]} Kxe4 {[%emt 0:00:15]} 60. Nxh4 {[%emt 0:00:30]} g5 {[%emt 0:00:34]} 61. Nf5 {[%emt 0:00:30]} Kf3 {[%emt 0:00:48]} 62. Kc2 {[%emt 0:00:30]} e4 {[%emt 0:00:11]} 63. Kd2 {[%emt 0:00:30]} Be5 {[%emt 0:00:16]} 64. Ke1 {[%emt 0:01:30]} e3 {[%emt 0:00:34]} 65. Nxe3 {[%emt 0:03:30]} Kxe3 {[%emt 0:00:06]} 66. h4 {[%emt 0:00:00]} Bg3+ {[%emt 0:00:02]} 0-1

[Event "Istanbul Open 2019"]
[Site "Istanbul"]
[Date "2019.08.31"]
[Round "7.2"]
[White "Yaran, Siar"]
[Black "Ozsakallioglu, Okan"]
[Result "1-0"]
[ECO "D00"]
[WhiteElo "2209"]
[BlackElo "2324"]
[Annotator "NA"]
[PlyCount "87"]
[EventDate "2019.08.26"]
[EventType "swiss"]
[EventCountry "TUR"]
[SourceTitle "playchess.com"]
[Source "ChessBase"]
[SourceQuality "1"]
[TimeControl "5400+30"]

1. d4 {[%emt 0:03:30]} Nf6 {[%emt 0:01:30]} 2. Nc3 {[%emt 0:00:00]} d5 {[%emt 0:00:30]} 3. Bf4 {[%emt 0:01:00]} g6 {[%emt 0:05:30]} 4. e3 {[%emt 0:00:30]} a6 {[%emt 0:04:30]} 5. Nf3 {[%emt 0:05:30]} Bg7 {[%emt 0:00:00]} 6. Bd3 {[%emt 0:04:30] D00: 1 d4 d5: Unusual lines} (6. Be2 O-O 7. h4 c5 8. dxc5 Nbd7 9. Nd2 Nxc5 10. h5 Nfe4 11. Ndxe4 Nxe4 12. Nxd5 Bxb2 13. hxg6 fxg6 14. Bc4 e6 {1-0 (102) Romanov,E (2619)-Torosyan,N (2371) Batumi 2018}) 6... c5 {[%emt 0:01:00]} 7. dxc5 {[%emt 0:05:30]} Nbd7 $146 {[%emt 0:02:30]} ({Predecessor:} 7... Qa5 8. O-O O-O 9. Be5 Qxc5 10. Bd4 Qd6 11. Be5 Qc5 12. Bd4 {½-½ (12) Huszar,G (1927)-Toth,T (1942) Hungary 2012}) 8. b4 {[%emt 0:15:30]} (8. Na4 $11 {keeps the balance.}) 8... e5 $1 {[%emt 0:01:30]} 9. Nxe5 {[%emt 0:31:30]} Nh5 {[%emt 0:00:30]} 10. g4 {[%emt 0:00:30]} Nxe5 {[%emt 0:00:30]} 11. gxh5 {[%emt 0:00:30]} Bg4 {[%emt 0:02:30]} 12. Bxe5 {[%emt 0:00:00]} Bxd1 {[%emt 0:01:30]} 13. Bxg7 {[%emt 0:00:00]} Rg8 {[%emt 0:00:30]} 14. h6 {[%emt 0:09:25]} Bf3 {[%emt 0:00:30]} 15. Rg1 {[%emt 0:00:30]} Qh4 {[%emt 0:00:00]} 16. Rg3 {[%emt 0:02:10]} Qh5 {[%emt 0:03:00]} ({But not} 16... Qxb4 $6 17. Rb1 $14) 17. Bf6 {[%emt 0:04:00]} Kd7 {[%emt 0:01:30]} ({Not} 17... Qxh2 18. Rxf3 Qh1+ {[%mdl 64] Double Attack} 19. Ke2 $18) 18. Rg5 {[%emt 0:06:01]} (18. Ne2 $11 {remains equal.} Bxe2 19. Bxe2 Qxh2 20. Bg4+ Kc6 21. c4 dxc4 22. Bf3+ Kc7 23. Be5+ Kc8 24. Bg4+ Kd8 25. Rd1+ Ke8 26. Bf3) 18... Qxh2 {[%emt 0:02:30]} 19. Nxd5 {[%emt 0:00:18]} (19. Be2 $1 $11 {was the only way to keep the balance.} Qh1+ 20. Kd2 Qxa1 21. Bxf3) 19... Qxh6 {[%emt 0:08:30]} (19... Rae8 $17 20. Be2 Bxd5 21. Rxd5+ Kc8) 20. Kd2 {[%emt 0:02:58]} ({White should play} 20. Be2 $15 Bxe2 21. Kxe2) 20... Rge8 {[%emt 0:00:30]} 21. Rag1 {[%emt 0:00:48]} Qh2 {[%emt 0:00:30]} 22. Kc3 {[%emt 0:01:33]} (22. Nb6+ $17 {only move.} Ke6 23. Bd4) 22... Bxd5 $15 {[%emt 0:02:30]} (22... Ke6 $2 {[%emt 0:02:30]}) ({Don't blunder} 22... Qxf2 $2 23. Rf1 $18) (22... Re6 $19 23. Nb6+ Ke8) 23. Rxd5+ {[%emt 0:00:30]} Ke6 {[%emt 0:00:30]} 24. Rh1 {[%emt 0:00:30]} Qc7 {[%emt 0:00:30]} 25. Be5 {[%emt 0:00:30]} Qxe5+ {[%emt 0:00:30]} 26. Rxe5+ {[%emt 0:00:30]} Kxe5 {[%emt 0:00:30]} 27. Rxh7 {[%emt 0:00:30]} Kf6 {[%emt 0:00:30]} 28. Rh4 {[%emt 0:00:30]} Rac8 {[%emt 0:01:30]} 29. Rf4+ {[%emt 0:00:27]} Kg7 {[%emt 0:00:00]} 30. Kb3 {[%emt 0:00:40]} Rc7 {[%emt 0:01:00]} 31. Rd4 {[%emt 0:00:07]} Rh8 {[%emt 0:00:00]} 32. Ka4 {[%emt 0:00:56]} Rh2 {[%emt 0:01:00]} 33. Rf4 {[%emt 0:00:21]} Re7 {[%emt 0:02:30]} 34. Ka5 {[%emt 0:01:38]} Rh6 {[%emt 0:00:30]} 35. a4 {[%emt 0:00:31]} Kf8 {[%emt 0:01:30]} 36. Rf6 {[%emt 0:00:30]} Ke8 {[%emt 0:00:30]} 37. Kb6 {[%emt 0:00:24]} Kd8 {[%emt 0:00:30]} 38. Rd6+ {[%emt 0:00:30]} Kc8 {[%emt 0:00:00]} 39. Bf5+ {[%emt 0:00:00]} gxf5 {[%emt 0:01:00]} 40. Rxh6 {[%emt 0:00:13]} Re8 {[%emt 0:00:00]} 41. Rf6 {[%emt 0:00:00]} Re4 {[%emt 0:00:00]} 42. c3 {[%emt 0:00:26]} Kb8 {[%emt 0:00:30]} 43. c6 {[%emt 0:02:45]} Re7 {[%emt 0:00:30]} 44. Rh6 {[%emt 0:01:41]} 1-0

[Event "Istanbul Open 2019"]
[Site "Istanbul"]
[Date "2019.08.31"]
[Round "7.3"]
[White "Erdogan, Anil Berk"]
[Black "Nuri, Murad"]
[Result "1/2-1/2"]
[ECO "B70"]
[WhiteElo "2144"]
[BlackElo "2291"]
[Annotator "NA"]
[PlyCount "30"]
[EventDate "2019.08.26"]
[EventType "swiss"]
[EventCountry "TUR"]
[SourceTitle "playchess.com"]
[Source "ChessBase"]
[SourceQuality "1"]
[TimeControl "5400+30"]

1. e4 {[%emt 0:08:30]} c5 {[%emt 0:00:30]} 2. Nf3 {[%emt 0:00:30]} d6 {[%emt 0:00:30]} 3. d4 {[%emt 0:00:30]} cxd4 {[%emt 0:00:00]} 4. Nxd4 {[%emt 0:00:30]} Nf6 {[%emt 0:00:00]} 5. Nc3 {[%emt 0:00:30]} g6 {[%emt 0:00:30]} 6. g3 {[%emt 0:00:30]} Bg4 {[%emt 0:02:30]} 7. Qd3 {[%emt 0:12:30]} Bg7 {[%emt 0:05:30]} 8. Bg2 {[%emt 0:06:30]} Qc8 {[%emt 0:01:30]} 9. Bg5 {[%emt 0:09:30]} (9. h3 $5 {[%cal Rh3g4]} Bd7 10. f4 $11) 9... Nc6 {[%emt 0:18:30]} 10. Nxc6 {[%emt 0:13:30]} bxc6 {[%emt 0:01:30]} 11. e5 {[%emt 0:04:30]} dxe5 {[%emt 0:01:30]} 12. Qc4 {[%emt 0:00:30]} O-O {[%emt 0:00:00]} 13. Qxc6 {[%emt 0:06:30]} Qb8 {[%emt 0:14:00]} 14. O-O $11 {[%emt 0:13:18]} Qxb2 {[%emt 0:03:30]} 15. Rab1 {[%emt 0:06:15]} Qxc2 {[%emt 0:19:30]} 1/2-1/2

[Event "Istanbul Open 2019"]
[Site "Istanbul"]
[Date "2019.08.31"]
[Round "7.5"]
[White "Darban, Morteza"]
[Black "Mohannad, Farhan"]
[Result "1-0"]
[ECO "A41"]
[WhiteElo "2280"]
[BlackElo "2151"]
[Annotator "ChessBase"]
[PlyCount "103"]
[EventDate "2019.08.26"]
[EventType "swiss"]
[EventCountry "TUR"]
[SourceTitle "playchess.com"]
[Source "ChessBase"]
[SourceQuality "1"]
[TimeControl "5400+30"]

1. c4 {[%emt 0:00:30]} g6 {[%emt 0:04:30]} 2. Nc3 {[%emt 0:00:30]} Bg7 {[%emt 0:00:30]} 3. g3 {[%emt 0:00:30]} e5 {[%emt 0:02:30]} 4. Bg2 {[%emt 0:00:30]} Ne7 {[%emt 0:00:30]} 5. Nf3 {[%emt 0:10:30]} d6 {[%emt 0:00:00]} 6. d4 {[%emt 0:11:30]} Nd7 {[%emt 0:00:00]} 7. O-O {[%emt 0:01:30]} O-O {[%emt 0:00:30]} 8. Qd2 {[%emt 0:00:30]} Nb6 {[%emt 0:09:30]} 9. b3 {[%emt 0:09:30]} Bg4 {[%emt 0:10:30]} 10. Bb2 {[%emt 0:08:30]} Qc8 {[%emt 0:04:30]} 11. Rfd1 {[%emt 0:06:30]} Rd8 {[%emt 0:14:30]} 12. d5 {[%emt 0:14:30]} Bh3 {[%emt 0:06:30]} 13. Bh1 {[%emt 0:00:30]} h6 {[%emt 0:00:30]} 14. e3 {[%emt 0:08:30]} a5 {[%emt 0:02:30]} 15. Nb5 {[%emt 0:01:30]} Nd7 {[%emt 0:00:30]} 16. Bc3 {[%emt 0:03:18]} b6 {[%emt 0:00:30]} 17. Ne1 {[%emt 0:00:15]} g5 {[%emt 0:14:30]} 18. Nd3 {[%emt 0:02:25]} Bf5 {[%emt 0:00:00]} 19. e4 {[%emt 0:06:45]} Bg6 {[%emt 0:00:00]} 20. f3 {[%emt 0:00:29]} f5 {[%emt 0:00:30]} 21. Re1 {[%emt 0:01:00]} Rf8 {[%emt 0:03:30]} 22. Bg2 {[%emt 0:00:19]} g4 {[%emt 0:00:30]} 23. f4 {[%emt 0:05:22]} fxe4 {[%emt 0:04:30]} 24. Bxe4 {[%emt 0:04:12]} Bxe4 {[%emt 0:04:19]} 25. Rxe4 {[%emt 0:00:30]} Ng6 {[%emt 0:00:30]} 26. Rf1 {[%emt 0:00:30]} Nc5 {[%emt 0:01:33]} 27. Ree1 {[%emt 0:00:01]} exf4 {[%emt 0:03:19]} 28. Bxg7 {[%emt 0:01:02]} Kxg7 {[%emt 0:00:05]} 29. Nxf4 {[%emt 0:00:24]} Ne5 {[%emt 0:01:45]} 30. Nd4 {[%emt 0:00:21]} Kh7 {[%emt 0:01:25]} 31. Qc2+ {[%emt 0:01:08]} Kg8 {[%emt 0:00:05]} 32. Rxe5 {[%emt 0:01:42]} dxe5 {[%emt 0:00:06]} 33. Qg6+ {[%emt 0:00:30]} Kh8 {[%emt 0:00:30]} 34. Qxh6+ {[%emt 0:00:30]} Kg8 {[%emt 0:00:00]} 35. Qg5+ {[%emt 0:00:04]} Kh7 {[%emt 0:00:03]} 36. Nde6 {[%emt 0:01:02]} Nxe6 {[%emt 0:00:59]} 37. Nxe6 {[%emt 0:00:30]} Rxf1+ {[%emt 0:00:30]} 38. Kxf1 {[%emt 0:00:00]} Qd7 {[%emt 0:00:45]} 39. Qh5+ {[%emt 0:00:07]} Kg8 {[%emt 0:00:05]} 40. Qxg4+ {[%emt 0:00:33]} Kh8 {[%emt 0:00:06]} 41. Qh5+ {[%emt 0:00:32]} Kg8 {[%emt 0:00:04]} 42. Qg5+ {[%emt 0:00:24]} Kh7 {[%emt 0:00:47]} 43. Qxe5 {[%emt 0:00:14]} Rc8 {[%emt 0:00:05]} 44. h4 {[%emt 0:01:30]} Qf7+ {[%emt 0:00:42]} 45. Kg2 {[%emt 0:00:10]} Qg6 {[%emt 0:00:00]} 46. Kh3 {[%emt 0:00:54]} Kg8 {[%emt 0:00:24]} 47. Nxc7 {[%emt 0:00:43]} Qf7 {[%emt 0:00:33]} 48. Ne6 {[%emt 0:01:00]} Qf1+ {[%emt 0:00:30]} 49. Kg4 {[%emt 0:00:30]} Qd1+ {[%emt 0:00:00]} 50. Kg5 {[%emt 0:00:00]} Qd2+ {[%emt 0:00:03]} 51. Kh5 {[%emt 0:00:20]} Qd1+ {[%emt 0:01:06]} 52. g4 {[%emt 0:00:04]} 1-0

[Event "Istanbul Open 2019"]
[Site "Istanbul"]
[Date "2019.08.31"]
[Round "7.6"]
[White "Ozbay, Ece"]
[Black "Yarashov, Azat"]
[Result "0-1"]
[ECO "B01"]
[WhiteElo "2125"]
[BlackElo "2156"]
[Annotator "ChessBase"]
[PlyCount "114"]
[EventDate "2019.08.26"]
[EventType "swiss"]
[EventCountry "TUR"]
[SourceTitle "playchess.com"]
[Source "ChessBase"]
[SourceQuality "1"]
[TimeControl "5400+30"]

1. e4 {[%emt 0:08:30]} d5 {[%emt 0:00:30]} 2. exd5 {[%emt 0:02:30]} Nf6 {[%emt 0:00:00]} 3. d4 {[%emt 0:01:30]} Nxd5 {[%emt 0:01:00]} 4. Nf3 {[%emt 0:00:30]} g6 {[%emt 0:00:00]} 5. Be2 {[%emt 0:02:30]} Bg7 {[%emt 0:00:00]} 6. O-O {[%emt 0:02:30]} O-O {[%emt 0:00:00]} 7. c4 {[%emt 0:00:30]} Nb6 {[%emt 0:00:00]} 8. h3 {[%emt 0:01:30]} Bf5 {[%emt 0:01:30]} 9. Nc3 {[%emt 0:00:30]} Nc6 {[%emt 0:02:30]} 10. Be3 {[%emt 0:01:30]} e5 {[%emt 0:03:30]} 11. d5 {[%emt 0:07:30]} Ne7 {[%emt 0:05:30]} 12. Qb3 {[%emt 0:00:30]} Bc8 {[%emt 0:00:00]} 13. Rfd1 {[%emt 0:05:30]} Nd7 {[%emt 0:05:00]} 14. c5 {[%emt 0:11:30]} c6 {[%emt 0:03:30]} 15. dxc6 {[%emt 0:23:30]} bxc6 {[%emt 0:04:30]} 16. Bc4 {[%emt 0:01:30]} Nf5 {[%emt 0:04:30]} 17. Ne4 {[%emt 0:03:30]} Nxe3 {[%emt 0:04:30]} 18. Qxe3 {[%emt 0:00:00]} Qe7 {[%emt 0:05:30]} 19. Nd6 {[%emt 0:03:00]} h6 {[%emt 0:14:30]} 20. Rd2 {[%emt 0:00:30]} a5 {[%emt 0:15:30]} 21. Rad1 {[%emt 0:02:14]} Nf6 {[%emt 0:09:15]} 22. Nxe5 {[%emt 0:10:42]} Nd5 {[%emt 0:00:56]} 23. Nxc6 {[%emt 0:07:23]} Qxe3 {[%emt 0:00:39]} 24. fxe3 {[%emt 0:00:30]} Nxe3 {[%emt 0:00:30]} 25. Ne7+ {[%emt 0:00:00]} Kh7 {[%emt 0:00:00]} 26. Bxf7 {[%emt 0:00:24]} Rxf7 {[%emt 0:01:13]} 27. Nxf7 {[%emt 0:00:23]} Nxd1 {[%emt 0:00:45]} 28. Rxd1 {[%emt 0:00:25]} Bf8 {[%emt 0:00:47]} 29. Nxc8 {[%emt 0:02:58]} Bxc5+ {[%emt 0:00:02]} 30. Kh1 {[%emt 0:00:35]} Rxc8 {[%emt 0:00:01]} 31. Rd7 {[%emt 0:00:08]} Rb8 {[%emt 0:00:52]} 32. b3 {[%emt 0:00:43]} Kg7 {[%emt 0:00:30]} 33. Ne5+ {[%emt 0:00:24]} Kf6 {[%emt 0:01:44]} 34. Nc6 {[%emt 0:00:01]} Rc8 {[%emt 0:00:36]} 35. Nxa5 {[%emt 0:01:00]} Ra8 {[%emt 0:00:53]} 36. Nb7 {[%emt 0:00:30]} Ba3 {[%emt 0:00:00]} 37. Rc7 {[%emt 0:00:26]} Re8 {[%emt 0:00:00]} 38. Rc6+ {[%emt 0:00:29]} Kg5 {[%emt 0:00:00]} 39. Rc2 {[%emt 0:00:31]} h5 {[%emt 0:00:25]} 40. g3 {[%emt 0:00:47]} h4 {[%emt 0:00:30]} 41. Kg2 {[%emt 0:00:30]} Re3 {[%emt 0:00:30]} 42. gxh4+ {[%emt 0:00:08]} Kxh4 {[%emt 0:00:22]} 43. Rc4+ {[%emt 0:01:09]} Kg5 {[%emt 0:00:01]} 44. Rc2 {[%emt 0:00:06]} Kh4 {[%emt 0:00:30]} 45. Rc4+ {[%emt 0:00:30]} Kg5 {[%emt 0:00:00]} 46. Ra4 {[%emt 0:00:13]} Be7 {[%emt 0:00:25]} 47. b4 {[%emt 0:00:42]} Re4 {[%emt 0:00:30]} 48. a3 {[%emt 0:00:48]} Kf4 {[%emt 0:00:05]} 49. Ra6 {[%emt 0:00:17]} Re2+ {[%emt 0:02:08]} 50. Kf1 {[%emt 0:00:30]} Kf3 {[%emt 0:00:00]} 51. Rc6 {[%emt 0:00:19]} Re3 {[%emt 0:00:22]} 52. Rc2 {[%emt 0:00:41]} Bh4 {[%emt 0:00:26]} 53. Rc1 {[%emt 0:00:24]} Rxa3 {[%emt 0:02:24]} 54. Nc5 {[%emt 0:00:30]} Bg5 {[%emt 0:00:00]} 55. Rb1 {[%emt 0:00:38]} Be3 {[%emt 0:00:17]} 56. Nb3 {[%emt 0:00:58]} Ra2 {[%emt 0:00:07]} 57. Nc1 {[%emt 0:00:31]} Rg2 {[%emt 0:00:08]} 0-1